bitfinex/quotes_ETHUSD_20250411
["timestamp","ask_amount","ask_price","bid_price","bid_amount"]
[1744390114786,6.36713151,1570.6,1570.3,0.00499451]
[1744390114989,12.73445151,1570.6,1570.3,0.00499451]
[1744390115287,12.73445151,1570.6,1570.3,1.56139096]
[1744390116688,6.3674,1570.5,1570.3,1.56139096]
[1744390116887,6.3678,1570.4,1570.3,0.00499451]
[1744390117098,6.36780151,1570.4,1570.3,0.00499451]
[1744390120289,1.51e-06,1570.4,1570.3,0.00499451]
[1744390120599,6.36780151,1570.4,1570.3,0.00499451]
[1744390122998,10.74980151,1570.4,1570.3,4.51e-06]
[1744390123162,12.73685166,1570.4,1570.3,4.51e-06]
[1744390123893,12.73685015,1570.4,1570.3,3e-06]
[1744390125500,12.18685015,1570.4,1570.3,3e-06]
[1744390126366,12.73685015,1570.4,1570.3,3e-06]
[1744390126998,2.81905015,1570.4,1570.3,3e-06]
[1744390127302,7.172,1570.4,1570.3,3e-06]
[1744390128215,7.722,1570.4,1570.3,3e-06]
[1744390128562,14.544,1570.4,1570.3,3e-06]
[1744390128766,13.994,1570.4,1570.3,3e-06]
[1744390129014,6.3678,1570.4,1570.3,3e-06]
[1744390129303,1.81845188,1570.6,1570.3,0.06368631]
[1744390129488,7.1203,1571.0,1570.4,0.7595]
[1744390129687,1.81845188,1570.9,1570.6,6.36674]
[1744390129896,6.36622,1570.8,1570.5,12.79821814]
[1744390130404,8.18462188,1570.9,1570.6,6.36694]
[1744390130608,8.18462188,1570.9,1570.6,0.7689]
[1744390130609,1.81845188,1570.9,1570.6,0.7689]
[1744390130901,1.81845188,1570.9,1570.8,6.36618]
[1744390131106,7.14769,1571.2,1570.7,6.3664]
[1744390131107,1.81845188,1571.1,1570.7,6.3664]
[1744390131301,6.36557,1571.0,1570.8,0.63664]
[1744390131778,6.36556,1571.0,1570.8,0.63664]
[1744390131965,6.36577,1570.9,1570.6,7.13581]
[1744390132305,6.3662,1570.8,1570.6,0.7689]
[1744390132992,12.7319,1570.9,1570.6,0.7689]
[1744390133201,6.36658,1570.7,1570.4,13.98004]
[1744390133375,12.73282,1570.8,1570.5,1.398004]
[1744390133704,6.3666,1570.7,1570.4,13.97993]
[1744390133905,1.81845188,1570.7,1570.4,13.97993]
[1744390134093,1.81845188,1570.7,1570.5,6.43071758]
[1744390134296,1.81845188,1570.7,1570.6,6.36699]
[1744390136102,1.81845188,1570.7,1570.5,12.79792227]
[1744390136301,1.81845188,1570.7,1570.6,7.64678223]
[1744390136695,1.81845188,1570.7,1570.6,6.36699]
[1744390137401,1.81845188,1570.8,1570.7,6.36658]
[1744390137614,1.81845188,1570.8,1570.5,6.43096495]
[1744390137811,8.18497188,1570.8,1570.4,20.34769]
[1744390138012,8.18497188,1570.8,1570.4,22.42561449]
[1744390138410,14.55133188,1570.8,1570.4,22.42561449]
[1744390138614,8.18481188,1570.8,1570.5,6.36736]
[1744390139116,7.19043,1570.7,1570.4,7.6123]
[1744390139325,7.19043,1570.7,1570.4,13.98007]
[1744390139816,0.8237,1570.7,1570.4,20.3477]
[1744390140020,1.81845188,1570.8,1570.6,6.36675]
[1744390140378,1.81845188,1570.8,1570.7,6.36658]
[1744390140579,1.81845188,1570.8,1570.7,7.15688]
[1744390141178,1.81845188,1570.8,1570.4,15.26763649]
[1744390141391,1.81845188,1570.8,1570.4,15.26759649]
[1744390141615,6.36682,1570.7,1570.4,6.822]
[1744390141820,8.18470188,1570.8,1570.4,19.55741]
[1744390142035,14.55108188,1570.8,1570.4,13.18963]
[1744390142324,14.55108188,1570.8,1570.5,6.36727]
[1744390142325,1.81845188,1570.8,1570.5,6.36727]
[1744390142519,1.81845188,1570.8,1570.7,6.36658]
[1744390143022,1.81845188,1570.8,1570.6,7.003527]
[1744390143238,1.81845188,1570.8,1570.6,13.370377]
[1744390143511,1.81845188,1570.8,1570.7,6.36658]
[1744390143677,1.81845188,1570.8,1570.7,6.43024397]
[1744390143874,2.60275188,1571.1,1570.7,8.41030107]
[1744390144111,1.81845188,1571.1,1571.0,6.36537]
[1744390144573,1.81845188,1571.1,1570.9,0.8034]
[1744390144776,1.81845188,1571.1,1570.9,6.36576]
[1744390144977,1.81845188,1571.1,1571.0,6.36537]
[1744390146716,1.81845188,1571.3,1571.2,6.36456]
[1744390148853,1.81845188,1571.4,1571.3,6.36415]
[1744390149916,1.81845188,1571.4,1571.3,7.18355]
[1744390150111,1.81845188,1571.8,1571.7,6.36253]
[1744390150318,1.1930538,1572.0,1571.7,6.36253]
[1744390150319,1.81845188,1571.9,1571.7,6.36253]
[1744390150530,1.81845188,1571.9,1571.7,6.36242]
[1744390150730,2.67610345,1571.9,1571.5,6.36322]
[1744390150949,6.36271,1571.7,1571.4,6.36363]
[1744390151146,0.787,1571.6,1571.4,6.36371]
[1744390151466,0.787,1571.6,1571.3,6.36408]
[1744390151758,15.33161188,1571.6,1571.2,6.36455]
[1744390151918,8.96845188,1571.6,1571.3,6.36415]
[1744390152112,0.89684519,1571.5,1571.4,6.36375]
[1744390152419,0.7742,1571.8,1571.5,6.36334]
[1744390152625,4.81845188,1571.9,1571.6,6.36273]
[1744390152915,1.81845188,1571.9,1571.7,6.36249]
[1744390153114,6.36215,1571.8,1571.5,6.36327]
[1744390153324,1.81845188,1571.9,1571.6,6.36257]
[1744390153528,3.38967645,1571.9,1571.6,12.72527]
[1744390153760,1.81845188,1571.9,1571.8,6.36213]
[1744390155579,6.36214,1571.8,1571.5,6.36309]
[1744390155743,1.81845188,1571.9,1571.6,6.36282]
[1744390156167,6.36223,1571.8,1571.5,6.36332]
[1744390156375,8.18028188,1571.9,1571.6,6.36279]
[1744390156592,1.81845188,1571.9,1571.7,6.36225]
[1744390157074,1.81845188,1571.9,1571.6,12.72567]
[1744390157269,8.18022188,1571.9,1571.6,12.72567]
[1744390157958,1.81845188,1571.9,1571.7,12.72493]
[1744390158165,1.81845188,1571.9,1571.8,6.36213]
[1744390158412,1.81845188,1571.9,1571.7,6.36241]
[1744390158692,1.81845188,1571.9,1571.7,12.72482]
[1744390159252,1.81845188,1571.9,1571.8,6.36213]
[1744390159446,2.21510568,1572.0,1571.8,6.36213]
[1744390159651,2.21510568,1572.0,1571.9,6.36172]
[1744390160456,2.21510568,1572.0,1571.8,6.36213]
[1744390161068,8.57644568,1572.0,1571.7,12.72488]
[1744390161567,7.16798,1571.9,1571.6,6.36281]
[1744390161759,7.16798,1571.9,1571.6,12.72563]
[1744390161963,7.16798,1571.9,1571.7,6.36245]
[1744390161964,0.8061,1571.9,1571.7,6.36245]
[1744390162363,8.57645568,1572.0,1571.7,12.72487]
[1744390162994,16.81250525,1572.0,1571.7,6.36252]
[1744390163196,10.45081525,1572.0,1571.7,12.72494]
[1744390163569,1.81845188,1571.9,1571.7,12.72494]
[1744390163774,1.81845188,1571.9,1571.7,12.72484]
[1744390163984,1.81845188,1571.9,1571.8,6.36213]
[1744390164564,1.81845188,1571.9,1571.7,12.72473]
[1744390164765,9.03794045,1571.9,1571.6,6.36279]
[1744390164987,2.63545188,1571.8,1571.4,6.36367]
[1744390165190,0.817,1571.5,1571.1,7.1971]
[1744390165374,8.18230188,1571.4,1571.1,6.36486]
[1744390165910,9.08223207,1571.4,1571.0,6.36525]
[1744390166221,15.44637207,1571.4,1571.1,6.36495]
[1744390166708,15.44637207,1571.4,1571.0,6.36525]
[1744390166709,12.72848,1571.3,1571.0,6.36525]
[1744390166912,6.36416,1571.3,1571.0,6.36525]
[1744390167239,6.36416,1571.3,1571.0,12.73048]
[1744390167409,15.44617207,1571.4,1571.0,12.73048]
[1744390168322,13.52748,1571.2,1570.9,6.36569]
[1744390168519,6.365,1571.1,1570.8,12.73215]
[1744390168697,8.98114188,1571.2,1570.9,6.3656]
[1744390168898,2.61645188,1571.2,1571.0,6.36535]
[1744390169316,8.98103188,1571.2,1570.9,6.3656]
[1744390169721,6.36513,1571.1,1570.8,12.73211]
[1744390170426,15.34586188,1571.2,1570.9,6.36574]
[1744390170720,10.67011979,1571.2,1570.9,6.36574]
[1744390170922,2.61645188,1571.2,1571.0,6.36508]
[1744390171093,4.81845188,1571.2,1571.1,6.36496]
[1744390171294,4.81845188,1571.2,1570.8,6.36604]
[1744390171602,7.14508,1571.1,1570.8,12.7321]
[1744390171805,7.14508,1571.1,1570.7,6.36647]
[1744390172112,6.36593,1570.9,1570.6,6.36691]
[1744390172304,1.81845188,1570.9,1570.6,0.06366871]
[1744390172503,1.81845188,1570.9,1570.8,6.36583]
[1744390173000,1.81845188,1570.9,1570.8,9.95899833]
[1744390173324,1.81845188,1570.9,1570.8,13.12000516]
[1744390173523,2.60115188,1571.4,1570.8,12.30660516]
[1744390173691,2.60115188,1571.4,1571.2,6.36418]
[1744390173894,2.60115188,1571.4,1571.3,6.36415]
[1744390174092,2.60115188,1571.4,1571.2,6.36418]
[1744390174293,8.96492188,1571.4,1571.1,6.36489]
[1744390174538,10.49776407,1571.4,1571.1,6.36483]
[1744390174709,2.60115188,1571.4,1571.2,6.36455]
[1744390174906,2.60115188,1571.4,1571.2,6.3644]
[1744390175228,5.60115188,1571.4,1571.2,6.3644]
[1744390175434,2.60115188,1571.4,1571.2,6.3644]
[1744390175796,6.36437,1571.3,1570.8,3.14330683]
[1744390176000,1.81845188,1571.2,1571.0,6.3652]
[1744390176196,1.81845188,1571.2,1571.1,6.36496]
[1744390176395,1.81845188,1571.2,1571.0,12.7304]
[1744390176728,1.81845188,1571.2,1571.1,6.36496]
[1744390178637,1.81845188,1571.2,1570.9,6.36572]
[1744390178844,8.18301188,1571.2,1570.9,12.73138]
[1744390179245,1.81845188,1571.2,1570.9,12.73138]
[1744390179449,9.00129907,1571.2,1570.8,7.16178]
[1744390179752,14.54797188,1571.2,1570.8,13.52786]
[1744390179910,7.19124,1571.1,1570.7,6.36653]
[1744390180109,7.19124,1571.1,1570.8,6.36615]
[1744390180310,14.81666602,1571.1,1570.8,6.36615]
[1744390180510,8.45142602,1571.1,1570.8,6.36615]
[1744390180843,2.08628602,1571.1,1570.8,6.36618]
[1744390181050,2.08628602,1571.1,1570.8,12.73236]
[1744390181205,8.45125602,1571.1,1570.8,6.36605]
[1744390181406,6.3658,1570.9,1570.6,0.7737]
[1744390181610,1.81845188,1570.9,1570.6,7.14037]
[1744390181854,8.18436188,1570.9,1570.6,12.73354]
[1744390182213,8.18436188,1570.9,1570.6,12.73353]
[1744390182644,1.81845188,1570.9,1570.7,6.36645]
[1744390183168,1.81845188,1570.9,1570.7,6.36642]
[1744390183327,1.81845188,1570.9,1570.7,6.36641]
[1744390183525,1.81845188,1570.9,1570.6,6.36688]
[1744390183843,1.81845188,1570.9,1570.7,6.36655]
[1744390184927,9.30262107,1570.9,1570.6,12.73373]
[1744390185139,2.93684107,1570.9,1570.7,6.36655]
[1744390185652,2.93684107,1570.9,1570.7,6.36646]
[1744390186032,1.81845188,1570.9,1570.7,6.36646]
[1744390186224,1.81845188,1570.9,1570.7,12.73293]
[1744390186423,1.81845188,1570.9,1570.7,6.36646]
[1744390186667,1.81845188,1570.9,1570.7,12.73293]
[1744390186861,1.81845188,1570.9,1570.7,12.73291]
[1744390187071,1.81845188,1570.9,1570.8,6.36618]
[1744390187665,1.81845188,1571.3,1570.8,6.36618]
[1744390187839,1.81845188,1571.2,1571.0,6.36522]
[1744390188052,4.81845188,1571.2,1571.0,6.36522]
[1744390188234,8.18303188,1571.2,1570.9,6.36547]
[1744390188418,14.54775188,1571.2,1570.9,6.36547]
[1744390188624,8.18303188,1571.2,1570.9,6.36547]
[1744390188865,8.18303188,1571.2,1570.9,12.7311]
[1744390189165,4.81845188,1571.2,1571.1,6.36496]
[1744390189340,4.81845188,1571.2,1571.0,6.36506]
[1744390189541,4.81845188,1571.2,1571.1,6.36496]
[1744390189968,4.81845188,1571.2,1571.0,12.73028]
[1744390190168,1.81845188,1571.2,1571.0,6.36506]
[1744390190469,1.81845188,1571.2,1571.1,6.36496]
[1744390190627,1.81845188,1571.2,1571.1,7.15986]
[1744390191636,1.81845188,1571.6,1571.5,6.36334]
[1744390191857,1.81845188,1571.9,1571.5,7.22187282]
[1744390192059,1.81845188,1571.9,1571.7,6.36226]
[1744390192368,1.81845188,1571.9,1571.2,7.1473]
[1744390192369,6.36305,1571.6,1571.2,7.1473]
[1744390192528,1.81845188,1571.5,1571.2,13.51169]
[1744390192732,7.13795,1571.4,1571.1,12.72986]
[1744390192932,7.13795,1571.4,1571.2,6.36455]
[1744390192933,0.7742,1571.4,1571.2,6.36455]
[1744390193465,4.81845188,1571.5,1571.3,6.36415]
[1744390193631,4.81845188,1571.5,1571.4,6.36375]
[1744390194759,1.81845188,1571.5,1571.4,6.36375]
[1744390195831,4.81845188,1571.6,1571.4,12.7275]
[1744390197359,4.81845188,1571.6,1571.5,6.36334]
[1744390197668,4.81845188,1571.6,1571.4,12.7275]
[1744390197966,4.81845188,1571.6,1571.4,6.36375]
[1744390198174,6.36334,1571.5,1571.2,6.36436]
[1744390198392,9.38113307,1571.6,1571.1,6.36484]
[1744390198393,0.8304,1571.4,1571.1,6.36484]
[1744390198533,6.36418,1571.3,1571.0,12.73052]
[1744390198734,1.81845188,1571.2,1571.0,6.36523]
[1744390200262,1.81845188,1571.2,1571.0,12.73047]
[1744390200768,1.81845188,1571.2,1571.1,6.36496]
[1744390201171,1.81845188,1571.2,1571.1,12.05449436]
[1744390201473,1.81845188,1571.2,1571.1,8.397679]
[1744390201863,1.81845188,1571.2,1571.1,8.46132002]
[1744390202068,1.81845188,1571.2,1571.1,8.397679]
[1744390202263,1.81845188,1571.2,1571.1,8.46132119]
[1744390202979,0.7738,1571.6,1570.9,3.59316833]
[1744390202980,6.36405,1571.4,1570.9,0.7823]
[1744390203146,6.36427,1571.3,1570.9,7.14799]
[1744390203348,6.36456,1571.2,1570.8,6.36603]
[1744390203547,9.00459188,1571.1,1570.7,6.36645]
[1744390203886,16.27011107,1571.1,1570.8,6.36596]
[1744390204059,3.54001107,1571.1,1570.6,12.73365]
[1744390204263,4.81845188,1571.0,1570.7,6.36654]
[1744390204581,4.81845188,1571.0,1570.8,6.36616]
[1744390204969,1.81845188,1571.0,1570.8,6.36607]
[1744390205188,1.81845188,1571.0,1570.9,6.36577]
[1744390205481,1.81845188,1571.0,1570.8,13.53392]
[1744390205682,1.81845188,1571.0,1570.9,6.36577]
[1744390207551,1.81845188,1571.1,1570.9,6.36577]
[1744390207752,1.81845188,1571.1,1570.9,6.36566]
[1744390207979,1.81845188,1571.1,1570.9,12.73132]
[1744390208287,8.94124188,1571.1,1570.8,13.53402]
[1744390208491,8.94124188,1571.1,1570.8,12.73213]
[1744390208659,10.47182607,1571.1,1570.8,6.36606]
[1744390208858,16.83717607,1571.1,1570.8,6.36606]
[1744390209291,6.36538,1571.0,1570.7,6.36646]
[1744390209489,12.7309,1571.0,1570.7,6.36646]
[1744390209705,6.36537,1571.0,1570.6,0.8136]
[1744390209877,2.45498888,1570.9,1570.4,7.6461]
[1744390210190,1.81845188,1570.9,1570.8,6.36618]
[1744390210392,1.81845188,1570.9,1570.7,6.36629]
[1744390210771,1.81845188,1570.9,1570.8,6.36618]
[1744390211388,1.81845188,1570.9,1570.8,7.7030868]
[1744390212010,1.81845188,1571.2,1571.1,6.36496]
[1744390212577,8.18315188,1571.2,1570.9,6.36574]
[1744390212782,6.36499,1571.1,1570.8,12.73228]
[1744390212983,7.1323,1571.0,1570.7,12.73294]
[1744390213179,8.95075188,1571.0,1570.7,12.73293]
[1744390213412,2.58535188,1571.0,1570.8,6.36614]
[1744390213720,1.81845188,1571.0,1570.8,12.73221]
[1744390214403,1.81845188,1571.0,1570.8,6.36607]
[1744390214916,1.81845188,1571.0,1570.8,6.36617]
[1744390215086,1.81845188,1571.0,1570.8,6.36607]
[1744390215617,1.81845188,1571.0,1570.9,6.36577]
[1744390215820,8.18383188,1571.0,1570.7,6.36645]
[1744390216033,9.01328188,1570.9,1570.3,7.12207]
[1744390216344,1.81845188,1570.9,1570.8,6.36618]
[1744390217000,1.81845188,1570.9,1570.7,13.49937]
[1744390217225,1.81845188,1570.9,1570.8,6.36618]
[1744390217417,1.81845188,1570.9,1570.7,12.73284]
[1744390217734,1.81845188,1570.9,1570.7,6.36642]
[1744390218102,1.81845188,1570.9,1570.8,6.36618]
[1744390218308,1.81845188,1570.9,1570.8,7.12998]
[1744390218800,1.81845188,1570.9,1570.7,7.639717]
[1744390219007,1.81845188,1570.9,1570.7,12.73285]
[1744390219205,1.81845188,1570.9,1570.7,12.73286]
[1744390219532,8.98033188,1570.9,1570.6,13.49752]
[1744390220212,8.98033188,1570.9,1570.6,12.73374]
[1744390220807,15.34629188,1570.9,1570.6,6.36686]
[1744390221110,2.61455188,1570.9,1570.7,6.36646]
[1744390221310,8.98048188,1570.9,1570.6,6.36695]
[1744390221500,1.81845188,1570.8,1570.4,0.8248]
[1744390221707,6.36753,1570.5,1570.2,6.36837]
[1744390221900,7.13927,1570.6,1570.4,6.36759]
[1744390221901,0.7722,1570.6,1570.4,6.36759]
[1744390222135,0.7722,1570.6,1570.4,12.73526]
[1744390222343,0.7722,1570.6,1570.4,6.36759]
[1744390222710,0.7722,1570.6,1570.2,8.323466]
[1744390222933,14.55357188,1570.5,1570.2,6.36843]
[1744390223121,8.18595188,1570.5,1570.2,6.36843]
[1744390223324,7.15119,1570.4,1570.0,6.36929]
[1744390223518,6.36929,1570.1,1569.8,5.56837261]
[1744390223738,6.36983,1569.9,1569.8,5.56837261]
[1744390224043,8.97158188,1569.9,1569.8,5.56837261]
[1744390224240,2.60175188,1569.9,1569.6,6.37072]
[1744390224745,8.97173188,1569.9,1569.6,6.37072]
[1744390225832,6.37062,1569.8,1569.4,11.94011261]
[1744390226042,8.18924188,1569.7,1569.4,11.94011261]
[1744390226446,8.18924188,1569.7,1569.4,18.31181261]
[1744390226643,1.81845188,1569.7,1569.4,18.31181261]
[1744390226853,1.81845188,1569.7,1569.5,6.37138]
[1744390227321,1.81845188,1569.7,1569.5,12.74267]
[1744390227772,1.81845188,1569.7,1569.6,6.37104]
[1744390229671,1.81845188,1569.7,1569.4,12.74343]
[1744390229875,3.27439407,1569.7,1569.4,6.37169]
[1744390230375,9.64504407,1569.7,1569.4,6.37169]
[1744390230568,9.64504407,1569.7,1569.4,12.74339]
[1744390230926,1.81845188,1569.7,1569.6,6.37104]
[1744390231131,1.81845188,1569.7,1569.5,6.37141]
[1744390231445,0.2851869,1569.6,1569.5,6.37141]
[1744390232472,0.2851869,1569.6,1569.4,6.37178]
[1744390233683,7.4500169,1569.6,1569.2,6.37257]
[1744390233845,14.74805378,1569.6,1569.2,12.74507]
[1744390234171,8.37686378,1569.6,1569.2,12.74507]
[1744390234377,14.74809378,1569.6,1569.2,12.74507]
[1744390234592,14.74809378,1569.6,1569.2,6.3725]
[1744390234739,14.74809378,1569.6,1569.2,12.74506]
[1744390234941,1.47480938,1569.5,1569.2,12.74506]
[1744390235261,0.26530418,1569.4,1569.3,7.18916]
[1744390235449,1.81845188,1569.7,1569.6,6.37104]
[1744390235649,2.08769951,1569.7,1569.6,6.37104]
[1744390236333,2.08769951,1569.7,1569.6,7.12594]
[1744390236530,2.87169951,1569.7,1569.6,6.37104]
[1744390236736,9.37121,1569.6,1569.3,6.37213]
[1744390236965,4.58360778,1569.6,1569.4,6.37169]
[1744390237285,0.25535158,1569.5,1569.4,6.37169]
[1744390237454,0.25535158,1569.5,1569.2,6.37256]
[1744390237652,6.62693158,1569.5,1569.2,12.7451]
[1744390237859,12.99856158,1569.5,1569.2,6.37255]
[1744390238045,14.75690852,1569.5,1569.1,12.79606]
[1744390238248,14.75690852,1569.5,1569.1,6.42295]
[1744390238249,6.37195,1569.4,1569.1,6.42295]
[1744390238440,8.44496197,1569.3,1569.1,0.05]
[1744390238642,2.07258197,1569.3,1569.1,6.42285]
[1744390238966,2.07258197,1569.3,1569.2,6.37267]
[1744390239166,2.07258197,1569.3,1569.1,13.60068]
[1744390239367,2.07258197,1569.3,1569.2,6.37267]
[1744390239874,2.07258197,1569.3,1569.1,12.7958]
[1744390240073,2.07258197,1569.3,1569.2,6.37267]
[1744390240982,2.07258197,1569.3,1569.2,8.477122]
[1744390241394,1.81845188,1569.3,1569.2,8.477122]
[1744390241965,1.81845188,1569.3,1569.2,8.54083826]
[1744390242173,1.81845188,1569.3,1569.2,8.477122]
[1744390242784,1.81845188,1569.7,1569.5,6.37126]
[1744390242981,6.37117,1569.6,1569.3,6.37209]
[1744390243197,6.63132958,1569.6,1569.3,6.37209]
[1744390243411,13.00266958,1569.6,1569.3,6.37209]
[1744390243610,7.20225,1569.5,1569.2,12.74509]
[1744390243811,8.58560796,1569.5,1569.2,12.74509]
[1744390244011,0.25723182,1569.4,1569.2,12.74509]
[1744390245508,0.25723182,1569.4,1569.2,12.74508]
[1744390246300,0.25723182,1569.4,1569.3,6.37226]
[1744390247231,0.25723182,1569.4,1569.3,14.04068269]
[1744390247535,1.81845188,1569.8,1569.7,6.37064]
[1744390247921,1.81845188,1569.8,1569.6,7.1585]
[1744390248225,1.81845188,1569.8,1569.6,6.3708]
[1744390248430,1.81845188,1569.8,1569.6,12.74173]
[1744390248634,1.81845188,1569.8,1569.7,6.37064]
[1744390248833,1.81845188,1569.8,1569.7,7.644784]
[1744390249333,1.81845188,1569.8,1569.7,8.432484]
[1744390249890,1.81845188,1570.1,1569.9,6.36968]
[1744390250089,1.81845188,1570.1,1570.0,6.36942]
[1744390250287,1.81845188,1570.1,1569.4,0.8285]
[1744390250486,6.36984,1569.9,1569.6,6.3707]
[1744390250706,2.61515188,1570.1,1569.9,6.36983]
[1744390250929,2.61515188,1570.1,1569.9,12.7395]
[1744390251234,2.61515188,1570.1,1569.7,7.19907]
[1744390251235,2.61515188,1570.1,1569.8,6.37016]
[1744390251535,8.98434188,1570.1,1569.8,6.37016]
[1744390251736,8.98434188,1570.1,1569.7,6.37059]
[1744390251737,6.36948,1570.0,1569.7,12.74118]
[1744390251896,16.88881607,1570.1,1569.7,12.74108]
[1744390252097,6.36942,1570.0,1569.7,6.37049]
[1744390252490,10.51957607,1570.1,1569.8,6.3702]
[1744390252918,6.37,1569.9,1569.6,6.37095]
[1744390253129,7.24384519,1569.9,1569.6,6.37095]
[1744390254003,0.87384519,1569.9,1569.7,6.37059]
[1744390254339,7.24369519,1569.9,1569.6,6.37086]
[1744390254739,1.81845188,1570.0,1569.5,0.8276]
[1744390254897,1.81845188,1569.9,1569.7,6.37032]
[1744390255237,1.81845188,1569.9,1569.7,12.74084]
[1744390255840,1.81845188,1569.9,1569.8,6.37023]
[1744390256195,1.81845188,1569.9,1569.7,6.37032]
[1744390256396,1.81845188,1569.9,1569.6,6.37101]
[1744390256643,9.00708607,1569.9,1569.6,12.74202]
[1744390257127,2.63724607,1569.9,1569.6,12.74202]
[1744390257330,2.63724607,1569.9,1569.7,6.37058]
[1744390257744,2.63724607,1569.9,1569.6,6.37101]
[1744390257905,7.19629,1569.6,1569.3,6.37225]
[1744390258115,2.64345188,1569.6,1569.3,12.7445]
[1744390258431,2.64345188,1569.6,1569.4,6.37185]
[1744390259039,1.81845188,1569.6,1569.5,6.37145]
[1744390259239,1.81845188,1569.6,1569.5,8.41468]
[1744390260642,2.03746178,1569.6,1569.5,8.41468]
[1744390260802,0.2190099,1569.6,1569.5,8.41468]
[1744390261220,3.0,1570.0,1569.9,6.36983]
[1744390261422,1.81845188,1570.1,1569.9,6.36983]
[1744390261758,0.22210418,1570.0,1569.9,6.36967]
[1744390262463,0.97680418,1570.0,1569.6,6.37096]
[1744390262751,13.71587418,1570.0,1569.6,6.37091]
[1744390262952,0.22210418,1570.0,1569.9,6.36983]
[1744390265561,0.22210418,1570.0,1569.7,6.37055]
[1744390265739,6.59172418,1570.0,1569.7,6.37055]
[1744390266061,7.20264,1569.9,1569.6,6.37095]
[1744390266217,9.7635663,1569.9,1569.6,12.7419]
[1744390266415,0.22010806,1569.8,1569.7,6.37064]
[1744390266814,1.81845188,1569.9,1569.8,6.37023]
[1744390267448,1.81845188,1569.9,1569.7,6.37051]
[1744390267939,1.81845188,1569.9,1569.8,6.37023]
[1744390271891,1.81845188,1569.9,1569.8,7.644304]
[1744390272046,1.81845188,1570.0,1569.9,6.36983]
[1744390272248,1.81845188,1570.0,1569.6,6.37088]
[1744390272486,6.36988,1569.9,1569.6,12.74181]
[1744390272660,1.81845188,1570.0,1569.5,0.8017]
[1744390272860,1.81845188,1569.9,1569.8,6.37023]
[1744390273057,1.81845188,1569.9,1569.7,6.37043]
[1744390273363,1.81845188,1569.9,1569.8,7.13263]
[1744390275642,2.04235103,1569.9,1569.8,7.13263]
[1744390277481,0.22389915,1569.9,1569.8,7.13263]
[1744390277679,9.15e-06,1569.9,1569.8,7.19632042]
[1744390277991,1.81845188,1570.3,1570.2,6.36861]
[1744390278353,2.00799602,1570.3,1570.2,6.36861]
[1744390278762,2.00799602,1570.3,1570.1,6.36881]
[1744390279055,0.7761,1570.2,1570.0,6.3693]
[1744390279365,0.17609024,1570.1,1569.9,6.36973]
[1744390279576,0.17609024,1570.1,1569.9,12.73942]
[1744390279766,0.17609024,1570.1,1569.9,6.3697]
[1744390280072,1.81845188,1570.0,1569.8,6.37011]
[1744390280456,0.17484548,1569.9,1569.8,6.37011]
[1744390281800,0.17484548,1569.9,1569.8,6.43381137]
[1744390282100,0.17484548,1569.9,1569.8,6.37011]
[1744390283076,0.17484548,1569.9,1569.7,12.74089]
[1744390283361,0.17484548,1569.9,1569.7,12.74095]
[1744390283560,0.17484548,1569.9,1569.7,12.74096]
[1744390283772,1.99329736,1569.9,1569.7,12.74096]
[1744390284111,1.99329736,1569.9,1569.8,6.37023]
[1744390285176,1.99329736,1569.9,1569.7,12.74092]
[1744390285872,1.99329736,1569.9,1569.8,6.37023]
[1744390286216,2.79479736,1569.9,1569.3,0.7976]
[1744390286400,3.8015,1569.6,1569.1,6.42301]
[1744390286710,6.37205,1569.4,1569.1,0.772061]
[1744390286896,7.32409265,1569.3,1569.1,0.05]
[1744390287086,12.52722188,1569.2,1569.1,0.05]
[1744390287289,12.69031755,1569.2,1569.1,0.05]
[1744390288081,19.50531755,1569.2,1569.1,0.05]
[1744390288512,10.68398,1569.0,1568.9,5.56837261]
[1744390288710,16.80586157,1569.0,1568.9,5.56837261]
[1744390289314,16.80586157,1569.0,1568.9,2.61e-06]
[1744390289689,12.55110068,1569.0,1568.9,2.61e-06]
[1744390290888,12.55110068,1569.0,1568.6,6.37491]
[1744390290889,18.92480068,1569.0,1568.6,6.37491]
[1744390291088,3.0,1568.9,1568.6,6.37491]
[1744390291297,0.15255626,1568.8,1568.5,12.75078]
[1744390291488,6.37416,1568.9,1568.5,12.75078]
[1744390291813,0.15196936,1568.8,1568.6,12.75008]
[1744390292017,0.15196936,1568.8,1568.6,7.649988]
[1744390292226,3.0,1568.9,1568.6,7.649918]
[1744390292386,0.1527798,1568.7,1568.6,6.37491]
[1744390292713,0.7605,1569.0,1568.8,6.37429]
[1744390292914,0.7605,1569.0,1568.7,6.37445]
[1744390292915,0.7605,1569.0,1568.7,12.74901]
[1744390293214,0.7605,1569.0,1568.4,13.19191]
[1744390293215,6.37419,1568.9,1568.5,6.37522]
[1744390293786,6.37413,1568.9,1568.5,6.37522]
[1744390294130,6.37431,1568.8,1568.5,6.37522]
[1744390294286,7.087593,1568.9,1568.5,12.75058]
[1744390294589,1.81845188,1568.8,1568.7,6.3747]
[1744390294797,1.81845188,1568.8,1568.6,6.37495]
[1744390295379,1.81845188,1568.8,1568.7,6.3747]
[1744390295996,1.81845188,1568.8,1568.6,6.37495]
[1744390296215,1.81845188,1568.8,1568.6,12.74993]
[1744390296523,1.81845188,1568.8,1568.6,12.74988]
[1744390296736,1.81845188,1568.8,1568.7,6.3747]
[1744390297606,1.81845188,1568.9,1568.8,6.37429]
[1744390298518,1.81845188,1568.9,1568.7,6.37455]
[1744390298720,1.81845188,1568.9,1568.7,12.74911]
[1744390299030,1.81845188,1568.9,1568.8,7.17479]
[1744390300032,1.81845188,1569.1,1569.0,6.37348]
[1744390301100,1.81845188,1569.4,1569.3,6.37226]
[1744390301895,3.0,1569.5,1569.3,6.37226]
[1744390302096,9.37177,1569.5,1569.1,6.37299]
[1744390302319,6.37198,1569.4,1569.1,6.37299]
[1744390302514,12.74406,1569.4,1569.1,6.37299]
[1744390302716,7.646386,1569.4,1569.1,6.37299]
[1744390302910,12.74407,1569.4,1569.1,6.37299]
[1744390303215,0.7943,1569.3,1569.1,6.37299]
[1744390303408,0.7943,1569.3,1568.9,6.37372]
[1744390303616,6.92276,1569.2,1568.8,6.37389]
[1744390303845,13.29566,1569.2,1568.8,12.74805]